bitfinex/quotes_SOLUSD_20250908
["timestamp","ask_amount","ask_price","bid_price","bid_amount"]
[1757339620783,17.08037181,213.54,213.49,38.34]
[1757339621084,16.39037181,213.54,213.49,38.34]
[1757339621292,16.39037181,213.54,213.46,4.85729063]
[1757339621293,0.69,213.53,213.5,38.34]
[1757339621473,7.17786279,213.51,213.42,0.2]
[1757339621680,0.69,213.5,213.43,38.34]
[1757339622272,0.69,213.5,213.43,43.057677]
[1757339622474,16.39190707,213.52,213.46,26.0]
[1757339623188,14.28559401,213.51,213.42,0.2]
[1757339623396,4.68384074,213.5,213.49,0.03]
[1757339623580,13.59559401,213.49,213.42,0.2]
[1757339623774,13.59559401,213.49,213.46,0.03]
[1757339623775,13.59559401,213.47,213.46,0.03]
[1757339624296,14.28559401,213.47,213.46,0.03]
[1757339624592,21.4634568,213.47,213.46,0.03]
[1757339625008,21.4634568,213.47,213.42,0.2]
[1757339625173,21.4634568,213.47,212.59,29.92731217]
[1757339625174,33.17786279,213.35,213.3,4.79374999]
[1757339625374,4.68823253,213.3,213.27,0.72]
[1757339625580,4.68797044,213.32,213.28,25.72]
[1757339625788,4.68797044,213.32,213.29,20.44]
[1757339626072,26.0,213.33,213.3,0.72]
[1757339626278,26.0,213.36,213.31,0.72]
[1757339626477,4.68717129,213.35,213.32,38.34]
[1757339626988,4.68683987,213.37,213.32,38.34]
[1757339627496,16.40357605,213.37,213.32,38.34]
[1757339627674,17.09357605,213.37,213.32,38.34]
[1757339627868,7.17786279,213.35,213.32,38.34]
[1757339628196,7.86786279,213.35,213.33,38.34]
[1757339628500,16.40357605,213.37,213.33,38.34]
[1757339628686,0.69,213.36,213.33,38.34]
[1757339628993,16.40357605,213.37,213.33,38.34]
[1757339629175,23.58143884,213.37,213.33,38.34]
[1757339629377,24.27143884,213.37,213.33,38.34]
[1757339629681,12.55470266,213.37,213.33,38.34]
[1757339630088,13.59559401,213.41,213.34,0.72]
[1757339630397,7.17786279,213.38,213.33,38.34]
[1757339630593,0.69,213.4,213.33,39.06]
[1757339630783,7.86786279,213.4,213.33,39.06]
[1757339631283,7.17786279,213.41,213.34,0.72]
[1757339631684,14.28559401,213.43,213.34,0.72]
[1757339631685,7.17786279,213.4,213.34,0.72]
[1757339631905,4.68559647,213.42,213.34,0.72]
[1757339632223,7.17786279,213.41,213.34,0.72]
[1757339632790,7.17786279,213.42,213.34,0.72]
[1757339632973,7.86786279,213.43,213.34,0.72]
[1757339633175,7.17786279,213.42,213.34,0.72]
[1757339633679,14.28559401,213.47,213.34,0.72]
[1757339633991,20.7734568,213.44,213.34,0.72]
[1757339634188,7.17786279,213.42,213.35,38.36]
[1757339634376,24.26437735,213.46,213.36,0.72]
[1757339634694,7.17786279,213.44,213.36,0.72]
[1757339635203,4.68471844,213.46,213.37,64.36]
[1757339635370,4.68471844,213.46,213.38,0.72]
[1757339635572,11.8623241,213.48,213.38,0.72]
[1757339635982,4.68446131,213.48,213.41,26.0]
[1757339636185,16.3951602,213.48,213.41,26.0]
[1757339636584,23.57302299,213.48,213.42,38.36]
[1757339636797,16.3951602,213.48,213.42,38.36]
[1757339636995,23.57302299,213.48,213.42,38.36]
[1757339637194,11.86214824,213.48,213.42,38.36]
[1757339637489,0.69,213.47,213.43,38.36]
[1757339637687,4.68428545,213.48,213.43,38.36]
[1757339637885,11.86189005,213.5,213.44,3.40397093]
[1757339638105,11.86189005,213.5,213.43,38.36]
[1757339638311,7.86786279,213.49,213.44,2.68396821]
[1757339638492,7.17786279,213.49,213.45,2.68396821]
[1757339638694,0.69,213.51,213.46,2.68537407]
[1757339638991,0.69,213.51,213.47,2.68537407]
[1757339639190,0.69,213.5,213.48,2.68537407]
[1757339639387,7.86786279,213.49,213.46,38.36]
[1757339639595,7.86786279,213.48,213.46,38.36]
[1757339639788,5.37449899,213.47,213.46,38.36]
[1757339639990,12.55236178,213.47,213.46,41.05356028]
[1757339640191,4.68449899,213.47,213.46,38.36]
[1757339640588,4.68449899,213.47,213.46,41.05436173]
[1757339640790,4.68406014,213.49,213.46,41.05436173]
[1757339640987,4.68406014,213.49,213.47,2.69436173]
[1757339641307,0.69,213.48,213.4,0.72]
[1757339641618,4.68406014,213.49,213.41,41.03559342]
[1757339641784,0.69,213.48,213.44,26.0]
[1757339641984,0.69,213.47,213.45,2.69559342]
[1757339642194,16.39344261,213.5,213.46,2.69559342]
[1757339642407,5.37384074,213.5,213.47,41.03559342]
[1757339642607,4.68384074,213.5,213.47,38.34]
[1757339642915,16.3920965,213.52,213.48,2.70409913]
[1757339643113,16.3920965,213.52,213.49,2.70409913]
[1757339643297,16.3920965,213.52,213.5,2.70409913]
[1757339643298,0.69,213.51,213.5,2.70409913]
[1757339643892,7.86786279,213.51,213.4,0.75]
[1757339644208,7.23786279,213.47,213.41,38.34]
[1757339644416,0.06,213.47,213.41,38.34]
[1757339644595,0.06,213.47,213.42,0.72]
[1757339644794,0.06,213.47,213.43,0.72]
[1757339645106,0.06,213.47,213.44,0.72]
[1757339645884,0.06,213.47,213.45,0.67]
[1757339646092,0.06,213.47,213.4,0.03]
[1757339646093,7.89786279,213.46,213.4,0.03]
[1757339646311,7.17786279,213.41,213.4,0.03]
[1757339647309,0.72,213.43,213.4,0.03]
[1757339647515,7.89786279,213.43,213.4,0.03]
[1757339647698,0.72,213.42,213.4,0.03]
[1757339647892,4.68581603,213.41,213.4,0.03]
[1757339648411,7.89786279,213.42,213.4,0.03]
[1757339648412,5.40572129,213.42,213.4,38.37]
[1757339648715,4.68471844,213.46,213.41,0.67]
[1757339648904,0.06,213.47,213.43,26.0]
[1757339649102,4.74455768,213.47,213.44,0.67]
[1757339649307,0.06,213.47,213.45,0.67]
[1757339649505,0.06,213.47,213.42,26.67]
[1757339649719,0.06,213.47,213.46,26.0]
[1757339650608,0.06,213.47,213.46,26.67]
[1757339650817,0.06,213.47,213.46,31.35471844]
[1757339651424,0.06,213.47,213.46,26.67]
[1757339651587,0.06,213.47,213.46,0.67]
[1757339651787,0.06,213.47,213.46,39.01]
[1757339653000,0.06,213.5,213.49,26.0]
[1757339653203,0.06,213.52,213.51,26.0]
[1757339653400,0.06,213.52,213.51,38.34]
[1757339653789,0.06,213.52,213.5,26.0]
[1757339653994,0.06,213.52,213.51,38.34]
[1757339654417,0.06,213.52,213.51,39.01]
[1757339654792,0.06,213.52,213.51,38.34]
[1757339654998,0.06,213.52,213.51,39.01]
[1757339655313,0.06,213.52,213.51,64.34]
[1757339655514,0.06,213.52,213.51,65.01]
[1757339656597,0.06,213.52,213.51,26.67]
[1757339656798,0.06,213.52,213.51,65.01]
[1757339657697,0.06,213.52,213.51,64.34]
[1757339657893,0.06,213.52,213.47,7.17786279]
[1757339657894,0.78,213.52,213.4,0.7]
[1757339658101,26.0,213.48,213.43,2.7192385]
[1757339658319,26.0,213.48,213.4,5.28410965]
[1757339658320,26.72,213.48,213.44,2.7192385]
[1757339658494,26.0,213.47,213.45,2.7192385]
[1757339658699,43.11267481,213.51,213.46,2.7192385]
[1757339659024,5.40362137,213.51,213.47,22.6992385]
[1757339659200,5.40362137,213.51,213.48,2.65419235]
[1757339659401,5.40362137,213.51,213.49,2.65419235]
[1757339659718,5.40362137,213.51,213.5,2.65419235]
[1757339660100,0.72,213.51,213.5,2.65419235]
[1757339660414,5.40362137,213.51,213.5,2.65419235]
[1757339661414,12.58148416,213.51,213.5,2.65419235]
[1757339661612,24.2905376,213.51,213.47,19.98]
[1757339661809,0.72,213.5,213.48,2.65899932]
[1757339662014,4.74340202,213.52,213.49,2.65908407]
[1757339662211,17.17190707,213.52,213.47,19.98]
[1757339662414,0.72,213.51,213.48,2.65957503]
[1757339662614,0.72,213.51,213.49,2.65957503]
[1757339662931,0.72,213.51,213.47,19.98]
[1757339663107,0.72,213.51,213.48,2.65957534]
[1757339663309,0.72,213.51,213.49,2.65957534]
[1757339663508,0.72,213.5,213.47,19.98]
[1757339663708,0.72,213.5,213.48,2.66003212]
[1757339663906,4.74340202,213.52,213.49,2.66003212]
[1757339664126,0.72,213.51,213.47,19.98]
[1757339664319,0.72,213.51,213.48,2.66003275]
[1757339664528,0.72,213.51,213.49,2.66003275]
[1757339664714,0.72,213.51,213.47,20.01]
[1757339665029,0.72,213.5,213.48,41.52027631]
[1757339665205,7.89786279,213.49,213.48,38.86]
[1757339665405,7.89786279,213.49,213.48,41.52039954]
[1757339665828,7.89786279,213.49,213.48,38.86]
[1757339666027,0.72,213.49,213.48,38.86]
[1757339666232,0.72,213.49,213.48,41.52070384]
[1757339666406,0.78,213.52,213.48,41.52082994]
[1757339666607,7.95786279,213.52,213.49,2.66049351]
[1757339666922,5.46343381,213.52,213.5,2.66049351]
[1757339667120,0.72,213.51,213.48,38.86]
[1757339667336,0.72,213.5,213.49,2.660492]
[1757339667522,7.89786279,213.5,213.48,38.86]
[1757339667722,21.4934568,213.49,213.48,38.86]
[1757339668330,13.59559401,213.48,213.47,0.03]
[1757339668524,20.7734568,213.48,213.47,0.03]
[1757339668713,20.7734568,213.48,213.44,0.03]
[1757339668714,24.90922224,213.48,213.44,0.03]
[1757339668915,20.7734568,213.45,213.44,0.03]
[1757339669114,7.17786279,213.45,213.44,0.03]
[1757339669316,0.72,213.45,213.44,0.03]
[1757339669539,7.89786279,213.45,213.44,0.03]
[1757339670248,26.17839472,213.45,213.44,0.03]
[1757339670422,29.59340769,213.45,213.44,0.03]
[1757339671311,22.4155449,213.45,213.44,0.03]
[1757339671531,29.59340769,213.45,213.44,0.03]
[1757339672120,4.68493792,213.45,213.44,0.03]
[1757339672441,16.13777998,213.45,213.44,0.03]
[1757339672636,15.41777998,213.45,213.44,0.03]
[1757339672848,0.72,213.51,213.44,39.34]
[1757339673344,10.73284206,213.49,213.45,2.6634236]
[1757339673543,10.73284206,213.49,213.46,2.6634236]
[1757339673744,10.73284206,213.49,213.44,38.67]
[1757339673943,10.73284206,213.48,213.45,2.66347343]
[1757339674135,10.73284206,213.48,213.44,38.67]
[1757339674335,4.68449899,213.47,213.45,2.66463604]
[1757339674650,4.68449899,213.47,213.46,38.62]
[1757339675024,16.13734105,213.47,213.46,38.62]
[1757339676528,15.41734105,213.47,213.46,38.62]
[1757339677025,29.70293506,213.47,213.46,38.62]
[1757339677271,41.41418254,213.47,213.44,38.57]
[1757339677456,10.73284206,213.45,213.44,38.57]
[1757339677757,11.42284206,213.45,213.44,38.57]
[1757339678049,13.59559401,213.49,213.44,38.57]
[1757339678223,10.73284206,213.47,213.44,38.57]
[1757339678423,4.68464772,213.47,213.44,38.57]
[1757339678947,4.68464772,213.47,213.45,2.71263075]
[1757339679254,11.42284206,213.46,213.44,38.57]
[1757339679545,10.73284206,213.45,213.44,38.57]
[1757339679844,10.73284206,213.45,213.44,41.28328362]
[1757339680641,16.10777998,213.45,213.44,41.28328362]
[1757339680853,29.70337399,213.45,213.44,0.03]
[1757339681268,33.12983288,213.45,213.44,0.03]
[1757339681837,29.01337399,213.45,213.44,0.03]
[1757339682046,29.70337399,213.45,213.44,0.03]
[1757339682267,29.01337399,213.45,213.44,0.03]
[1757339682758,29.70337399,213.45,213.44,0.03]
[1757339682970,29.70337399,213.45,213.37,26.03]
[1757339682971,13.59559401,213.44,213.37,0.03]
[1757339683139,10.73284206,213.38,213.37,0.03]
[1757339683550,13.59559401,213.44,213.37,0.74]
[1757339683742,10.73284206,213.43,213.38,2.71260415]
[1757339683940,10.73284206,213.4,213.37,0.03]
[1757339684547,4.6847167,213.47,213.38,29.42103503]
[1757339684743,4.68515742,213.44,213.39,2.71103503]
[1757339685061,10.73284206,213.43,213.4,41.09103503]
[1757339685263,10.73284206,213.42,213.4,38.38]
[1757339685758,4.68515742,213.44,213.4,38.38]
[1757339685959,4.68515742,213.44,213.41,0.03]
[1757339686147,4.68515742,213.44,213.41,2.74106481]
[1757339686348,4.68515742,213.44,213.41,0.03]
[1757339686836,16.39740716,213.45,213.41,0.03]
[1757339687539,10.73284206,213.42,213.41,0.03]
[1757339687951,11.42284206,213.42,213.41,0.03]
[1757339688146,13.59559401,213.44,213.41,0.03]
[1757339688353,10.73284206,213.42,213.41,0.03]
[1757339688958,29.70403254,213.42,213.41,0.03]
[1757339690759,13.59559401,213.41,213.37,0.03]
[1757339690946,15.41931689,213.38,213.37,0.03]
[1757339692460,13.59559401,213.42,213.37,2.73888373]
[1757339692655,10.73284206,213.41,213.37,2.73888373]
[1757339692861,11.71383256,213.43,213.37,3.44888373]
[1757339693041,11.71383256,213.43,213.38,2.70888373]
[1757339693042,4.68581603,213.41,213.38,2.70888373]
[1757339693240,25.30763067,213.46,213.39,26.0]
[1757339693441,10.73284206,213.44,213.4,2.70831556]
[1757339693641,10.73284206,213.44,213.41,38.38]
[1757339694442,24.32843607,213.42,213.37,0.03]
[1757339694774,13.59559401,213.42,213.37,0.03]
[1757339694947,4.68603561,213.4,213.37,0.03]
[1757339695145,4.68603561,213.4,213.37,2.73892768]
[1757339695347,27.1339667,213.4,213.37,0.03]
[1757339695659,10.73284206,213.41,213.37,0.03]
[1757339695968,15.41855934,213.42,213.38,28.70853871]
[1757339696174,15.41855934,213.42,213.38,26.0]
[1757339696353,10.73284206,213.41,213.38,26.0]
[1757339696676,10.73284206,213.4,213.38,26.0]
[1757339696867,10.73284206,213.4,213.38,23.340025]
[1757339697064,4.68625521,213.39,213.38,23.340025]
[1757339697578,15.41909727,213.39,213.38,23.340025]
[1757339697776,15.41909727,213.39,213.37,0.03]
[1757339698156,10.73284206,213.38,213.37,0.03]
[1757339698372,11.42284206,213.38,213.37,0.03]
[1757339699074,15.41931689,213.38,213.37,0.03]
[1757339699266,4.68647483,213.38,213.37,0.03]
[1757339699677,15.41931689,213.38,213.37,38.41]
[1757339699974,29.7049109,213.38,213.37,0.03]
[1757339700278,29.7049109,213.38,213.28,2.71115892]
[1757339700279,13.59559401,213.34,213.28,2.71115892]
[1757339700475,10.73284206,213.32,213.29,2.71115892]
[1757339700681,13.59559401,213.37,213.29,0.71]
[1757339700871,13.59559401,213.37,213.3,2.71269373]
[1757339701172,27.13857938,213.34,213.31,22.21269373]
[1757339701375,4.68735352,213.34,213.32,2.71269373]
[1757339701555,15.42019558,213.34,213.31,19.5]
[1757339701756,16.40573732,213.34,213.32,2.71333214]
[1757339701956,16.40573732,213.34,213.23,4.61027836]
[1757339701957,11.42284206,213.33,213.3,38.38]
[1757339702169,14.28559401,213.33,213.3,38.38]
[1757339702471,16.40573732,213.34,213.29,38.38]
[1757339702676,10.73284206,213.31,213.29,38.38]
[1757339702981,16.40958319,213.29,213.23,0.71]
[1757339703156,16.40958319,213.29,213.24,41.094731]
[1757339703476,10.73284206,213.28,213.25,3.424731]
[1757339703667,15.4212944,213.29,213.26,3.424731]
[1757339703860,15.4212944,213.29,213.27,2.714731]
[1757339704071,15.4212944,213.29,213.28,2.714731]
[1757339704250,10.73284206,213.3,213.28,2.714731]
[1757339704456,10.73284206,213.31,213.29,2.71200065]
[1757339704673,10.73284206,213.31,213.3,41.09200065]
[1757339705257,16.11085481,213.31,213.3,2.71200065]
[1757339705461,15.42085481,213.31,213.3,41.09200065]
[1757339706769,10.73284206,213.31,213.3,41.09200065]
[1757339706970,10.73284206,213.32,213.3,41.09200065]
[1757339707294,4.68785323,213.32,213.31,2.71200065]
[1757339707475,15.42069529,213.32,213.31,2.71200065]
[1757339707657,15.42069529,213.32,213.31,41.09200065]
[1757339709473,16.09069529,213.32,213.31,41.09200065]
[1757339709674,27.81017775,213.32,213.26,0.03]
[1757339709884,10.73284206,213.29,213.27,41.07091701]
[1757339710067,10.73284206,213.3,213.28,2.69091701]
[1757339710262,4.68785323,213.32,213.29,2.69091701]
[1757339710581,4.68752896,213.34,213.3,29.38075766]
[1757339710768,4.68752896,213.34,213.31,41.07075766]
[1757339710969,10.73284206,213.33,213.32,2.69075766]
[1757339711271,15.4204153,213.33,213.32,2.69075766]
[1757339712068,15.4204153,213.33,213.32,41.07075766]
[1757339712290,16.0904153,213.33,213.32,41.07075766]
[1757339712881,15.4204153,213.33,213.32,41.07075766]
[1757339713490,54.10996656,213.33,213.26,0.03]
[1757339713780,10.73284206,213.27,213.26,0.03]
[1757339713986,10.73284206,213.28,213.26,0.03]
[1757339714173,0.67,213.3,213.26,0.03]
[1757339714492,10.73284206,213.29,213.26,0.03]
[1757339715363,4.68889201,213.27,213.26,0.03]
[1757339715569,15.42139732,213.29,213.26,0.03]
[1757339715886,27.14252817,213.29,213.26,0.03]
[1757339716484,27.14252817,213.29,213.27,38.42]
[1757339716677,16.40968611,213.29,213.27,38.42]
[1757339717100,11.40284206,213.28,213.26,0.03]
[1757339717393,15.42151422,213.28,213.27,38.4]
[1757339717579,4.68848848,213.29,213.27,38.4]
[1757339718275,16.40824879,213.31,213.27,38.4]
[1757339718581,20.97865398,213.31,213.27,38.4]
[1757339718788,20.97865398,213.31,213.27,39.09]
[1757339719282,16.40824879,213.31,213.27,39.09]
[1757339719491,20.97865398,213.31,213.27,39.09]
[1757339719683,20.97865398,213.31,213.27,38.4]
[1757339720390,20.97865398,213.31,213.28,38.38]
[1757339720590,4.57040519,213.3,213.28,38.38]
[1757339720787,16.40824879,213.31,213.28,38.38]
[1757339720993,4.57040519,213.3,213.28,38.38]
[1757339721582,4.68845234,213.29,213.28,38.38]
[1757339722489,20.97998838,213.29,213.28,38.38]
[1757339722989,20.97998838,213.29,213.26,0.03]
[1757339723183,4.57040519,213.28,213.27,38.38]
[1757339723387,4.57040519,213.28,213.26,0.03]
[1757339723684,4.68867216,213.28,213.27,38.38]
[1757339723888,9.25907735,213.28,213.27,38.38]
[1757339724289,0.67,213.31,213.27,38.38]
[1757339724684,0.67,213.34,213.28,0.69]
[1757339724896,4.57040519,213.3,213.27,38.38]
[1757339725073,4.57040519,213.3,213.26,0.03]
[1757339725268,29.99825592,213.38,213.27,38.38]
[1757339725269,4.57040519,213.28,213.27,38.38]
[1757339725495,9.25907735,213.28,213.27,41.06124965]
[1757339727683,0.06,213.32,213.27,41.06124965]
[1757339727997,0.06,213.32,213.28,3.37124965]
[1757339728199,0.06,213.32,213.29,2.68124965]
[1757339728405,0.06,213.32,213.3,2.68124965]
[1757339728600,0.06,213.32,213.31,2.68124965]
[1757339728811,9.31819817,213.32,213.31,41.06124965]
[1757339728980,4.63040519,213.32,213.31,41.06124965]
[1757339729295,4.74779298,213.32,213.31,41.06124965]
[1757339729487,9.31819817,213.32,213.31,41.06124965]
[1757339729684,4.74779298,213.32,213.31,41.06124965]
[1757339729889,4.74779298,213.32,213.31,2.68124965]
[1757339730095,9.98819817,213.32,213.31,41.06124965]
[1757339730299,9.31819817,213.32,213.31,41.06124965]
[1757339730496,5.41779298,213.32,213.31,2.68124965]
[1757339730705,9.98819817,213.32,213.31,41.06124965]
[1757339731000,9.98819817,213.32,213.31,2.68124965]
[1757339731203,21.70768063,213.32,213.31,38.38]
[1757339732314,21.03768063,213.32,213.31,41.06346503]
[1757339732886,4.74779298,213.32,213.31,41.06346503]
[1757339733088,9.31819817,213.32,213.31,41.06346503]
[1757339734206,4.74779298,213.32,213.31,41.06346503]
[1757339734701,0.06,213.32,213.31,41.06346503]
[1757339734888,4.74779298,213.32,213.31,41.06346503]
[1757339735389,0.06,213.32,213.31,41.75346503]
[1757339735793,4.74779298,213.32,213.31,41.06346503]
[1757339736001,4.74779298,213.32,213.31,2.68346503]
[1757339736195,4.74779298,213.32,213.31,41.06346503]
[1757339737989,0.06,213.32,213.31,41.06346503]
[1757339738606,0.06,213.32,213.31,2.68346503]
[1757339738900,0.06,213.32,213.31,41.72346503]
[1757339741309,0.06,213.32,213.31,41.06346503]
[1757339741506,0.06,213.32,213.31,41.72346503]
[1757339741706,0.06,213.32,213.31,41.04346503]
[1757339742091,0.06,213.32,213.31,41.70346503]
[1757339742291,0.00891243,213.32,213.31,41.70346503]
[1757339742705,0.06,213.35,213.34,26.0]
[1757339742907,0.06,213.35,213.34,67.70346503]
[1757339743406,0.06,213.35,213.34,67.04346503]
[1757339743605,0.06,213.35,213.34,67.70346503]
[1757339744196,0.06,213.35,213.34,29.34346503]
[1757339744396,0.06,213.35,213.34,67.70346503]
[1757339744705,0.06,213.35,213.34,72.39081855]
[1757339744888,0.06,213.35,213.34,67.70346503]
[1757339745307,0.06,213.35,213.34,28.68346503]
[1757339745494,0.06,213.35,213.34,2.68346503]
[1757339745700,0.06,213.35,213.34,41.04346503]
[1757339747003,0.06,213.35,213.34,41.70346503]
[1757339747205,0.06,213.35,213.34,46.39081855]
[1757339747401,0.06,213.35,213.34,41.70346503]
[1757339747599,0.06,213.35,213.34,67.70346503]
[1757339747831,0.06,213.35,213.34,29.34346503]
[1757339747998,0.06,213.35,213.34,67.70346503]
[1757339748199,0.06,213.35,213.34,67.04346503]
[1757339748402,0.06,213.35,213.34,28.68346503]
[1757339748718,0.06,213.35,213.34,67.04346503]
[1757339749018,0.06,213.35,213.34,28.68346503]
[1757339749312,0.06,213.35,213.34,41.04346503]
[1757339749514,3.66425644,213.35,213.34,2.68346503]
[1757339749717,3.66425644,213.35,213.34,40.38346503]
[1757339750217,8.35139025,213.35,213.34,40.38346503]
[1757339752106,7.67139025,213.35,213.34,40.38346503]
[1757339752328,0.06,213.35,213.34,40.38346503]
[1757339752924,0.06,213.35,213.34,41.04346503]
[1757339753422,0.06,213.35,213.34,45.73081855]
[1757339754005,0.06,213.35,213.34,41.04346503]
[1757339754224,0.06,213.35,213.34,45.73081855]
[1757339755016,0.00892708,213.35,213.34,59.32641256]
[1757339756217,0.00892708,213.35,213.34,56.64294753]
[1757339757107,0.00892708,213.35,213.34,18.94294753]
[1757339757317,0.00892708,213.35,213.34,26.66]
[1757339757513,0.01026122,213.37,213.36,26.0]
[1757339757725,0.01026122,213.37,213.36,41.01338425]
[1757339758124,0.01026122,213.37,213.36,2.67338425]
[1757339758617,0.01026122,213.37,213.36,41.01338425]
[1757339758814,0.01026122,213.37,213.36,41.67338425]
[1757339759416,0.01026122,213.37,213.36,46.36029838]
[1757339759633,0.01026122,213.37,213.36,41.01338425]
[1757339760130,0.01026122,213.37,213.36,45.70029838]
[1757339760315,0.01026122,213.37,213.36,59.95589239]
[1757339760508,0.01026122,213.37,213.36,57.28250814]
[1757339761834,0.01026122,213.37,213.36,38.32]
[1757339762040,0.01026122,213.37,213.36,28.6722268]
[1757339762237,0.01026122,213.37,213.36,66.9922268]
[1757339762419,0.01026122,213.37,213.36,40.9922268]
[1757339762620,0.01026122,213.37,213.36,41.6522268]
[1757339763019,0.01026122,213.37,213.36,2.6722268]
[1757339763240,0.01026122,213.37,213.36,40.9922268]
[1757339763741,0.01026122,213.37,213.36,45.7374003]
[1757339763929,0.01026122,213.37,213.36,40.9922268]
[1757339764136,0.01026122,213.37,213.36,28.6722268]
[1757339764327,0.01026122,213.37,213.36,66.9922268]
[1757339764936,0.01026122,213.37,213.36,71.67914093]
[1757339766036,0.01026122,213.37,213.36,66.9922268]
[1757339767541,0.01026122,213.37,213.36,71.67914093]
[1757339768523,0.01026122,213.37,213.36,66.9922268]
[1757339769037,0.01026122,213.37,213.36,72.38914093]
[1757339769420,0.1,213.38,213.34,1.8742825]
[1757339769644,5.37669447,213.37,213.35,40.96250941]
[1757339769821,4.68669447,213.37,213.36,2.66250941]
[1757339770440,5.37669447,213.37,213.36,2.66250941]
[1757339770624,8.30095091,213.37,213.36,2.66250941]
[1757339770829,20.01768709,213.37,213.33,2.66250941]
[1757339771036,0.69,213.36,213.34,2.66250941]
[1757339771323,16.40343065,213.37,213.35,40.96250941]
[1757339771524,16.40343065,213.37,213.36,40.96250941]
[1757339771730,17.09343065,213.37,213.36,40.96250941]
[1757339771934,17.09343065,213.37,213.36,38.3]
[1757339772352,20.01768709,213.37,213.32,0.03]
[1757339772643,20.01768709,213.37,213.33,2.66556166]
[1757339772834,2.92425644,213.34,213.32,0.03]
[1757339773142,2.92425644,213.33,213.32,0.03]
[1757339773337,3.61425644,213.33,213.32,2.69586461]
[1757339773519,8.30182968,213.33,213.32,2.69586461]
[1757339773720,8.30182968,213.33,213.31,0.03]
[1757339773936,2.92425644,213.32,213.31,0.03]
[1757339774139,2.92425644,213.32,213.31,2.69638395]
[1757339774331,3.61425644,213.32,213.31,2.69638395]
[1757339775327,3.61425644,213.32,213.31,40.99638395]
[1757339775528,8.30204942,213.32,213.31,2.69638395]
[1757339776733,8.30204942,213.32,213.31,38.33]
[1757339777137,0.69,213.32,213.31,38.33]
[1757339777449,5.37779298,213.32,213.31,40.9962777]
[1757339777652,0.69,213.32,213.31,40.9962777]
[1757339777851,0.69,213.35,213.31,40.9962777]
[1757339778026,3.61425644,213.35,213.32,2.6662777]
[1757339778225,0.69,213.35,213.33,2.6662777]
[1757339778446,4.6867922,213.37,213.34,2.6662777]
[1757339778742,4.6867922,213.37,213.35,38.3]
[1757339778942,4.6867922,213.37,213.31,0.03]
[1757339778943,0.69,213.36,213.31,0.03]
[1757339779129,0.69,213.36,213.29,0.03]
[1757339779130,13.59559401,213.35,213.29,0.03]
[1757339779322,13.59559401,213.33,213.29,0.03]
[1757339779722,7.61248897,213.3,213.29,0.03]
[1757339780145,7.61248897,213.3,213.29,38.33]
[1757339780146,8.21248897,213.3,213.29,38.33]
[1757339780726,5.28823253,213.3,213.29,38.33]
[1757339780950,8.21248897,213.3,213.29,38.33]
[1757339781322,8.21248897,213.3,213.29,0.03]
[1757339781525,8.21248897,213.3,213.29,38.33]
[1757339782123,8.21248897,213.3,213.29,0.03]
[1757339782124,21.80808298,213.3,213.29,0.03]
[1757339782326,33.50510874,213.3,213.29,0.03]
[1757339782734,13.59559401,213.29,213.26,38.3]
[1757339782932,2.92425644,213.27,213.19,26.0]
[1757339783143,25.89261977,213.29,213.23,26.0]
[1757339783545,2.92425644,213.24,213.23,26.0]
[1757339783853,7.61380811,213.24,213.23,26.0]
[1757339784248,14.19559401,213.29,213.23,26.71]
[1757339784249,4.68849002,213.29,213.23,26.71]
[1757339784456,4.68849002,213.29,213.24,0.71]
[1757339784752,4.68849002,213.29,213.26,0.03]
[1757339784925,0.6,213.35,213.26,0.03]
[1757339784926,4.68735352,213.34,213.28,26.0]
[1757339785131,4.68735352,213.34,213.29,0.71]
[1757339785338,4.68735352,213.34,213.3,39.01]